[Event "Velammal-AICF Women GM 2019"]
[Site "Chennai"]
[Date "2019.02.03"]
[Round "10"]
[White "Babiy, Olga"]
[Black "Sapale Saloni"]
[Result "1-0"]
[ECO "C18"]
[WhiteElo "2275"]
[BlackElo "2198"]
[Annotator "NA"]
[PlyCount "119"]
[EventDate "2019.01.28"]
[EventType "swiss"]
[EventCountry "IND"]
[SourceTitle "playchess.com"]
[Source "ChessBase"]
[SourceQuality "1"]
[TimeControl "5400+30"]

{[%evp 23,119,45,38,42,43,35,38,31,25,36,44,21,23,9,55,58,79,108,107,10,24,-30,-60,-34,112,107,134,118,176,190,220,282,32767,32767,32767,32767,32767,32767,32767,32767,408,32767,32767,32767,32767,32767,32767,32767,32767,32767,268,222,213,241,227,227,210,227,207,233,32767,223,253,293,237,304,297,191,32767,32767,196,32767,32767,32767,32767,32767,32767,258,248,264,383,489,481,516,415,449,523,552,1697,668,6019,10705,1662,995,4618,29970,29970,6257]} 1. e4 {[%emt 0:00:58]} e6 {[%emt 0:00:00]} 2. d4 {[%emt 0:00:30]} d5 {[%emt 0:00:24]} 3. Nc3 {[%emt 0:00:00]} Bb4 {[%emt 0:00:00]} 4. e5 {[%emt 0:00:57]} c5 {[%emt 0:00:00]} 5. a3 {[%emt 0:00:06]} Bxc3+ {[%emt 0:00:00]} 6. bxc3 {[%emt 0:00:05]} Ne7 {[%emt 0:00:05]} 7. Qg4 {[%emt 0:00:38]} Qc7 {[%emt 0:00:13]} 8. Qxg7 {[%emt 0:00:17]} Rg8 {[%emt 0:00:07]} 9. Qxh7 {[%emt 0:00:04]} cxd4 {[%emt 0:00:15]} 10. Ne2 {[%emt 0:00:31]} Nbc6 {[%emt 0:00:46]} 11. f4 {[%emt 0:00:21]} dxc3 {[%emt 0:00:10]} 12. Qd3 {[%emt 0:00:49]} d4 {[%emt 0:00:34]} 13. Nxd4 {[%emt 0:21:27]} Nxd4 {[%emt 0:00:09]} 14. Qxd4 {[%emt 0:00:06]} Bd7 {[%emt 0:00:10]} 15. Rg1 {[%emt 0:10:51]} Nf5 {[%emt 0:01:41]} 16. Qf2 $1 {[%emt 0:00:20]} Qc6 {[%emt 0:05:44]} 17. Bd3 {[%emt 0:05:54]} Qd5 $1 {[%emt 0:02:41]} 18. a4 {[%emt 0:06:33]} Bc6 {[%emt 0:18:29]} 19. Ra3 $1 {[%emt 0:04:39]} Rd8 {[%emt 0:12:24]} 20. Rxc3 {[%emt 0:06:19]} Qa5 {[%emt 0:00:11]} 21. Bd2 {[%emt 0:00:11]} ({White should try} 21. Qc5 $16 Qxa4 22. Ra3) 21... Qxa4 {[%emt 0:01:05]} 22. Qc5 {[%emt 0:13:42]} Rd5 $1 {[%emt 0:10:59]} 23. Qc4 {[%emt 0:01:24]} Qxc4 $2 {[%emt 0:01:04]} (23... Qa5 $15 {stays ahead.} 24. Rb3 Qd8) 24. Rxc4 {[%emt 0:05:57]} Rd8 {[%emt 0:07:47]} 25. Kf2 {[%emt 0:00:31]} Nh4 {[%emt 0:00:21]} 26. g3 {[%emt 0:03:32]} Bd5 {[%emt 0:07:21]} 27. Rc3 {[%emt 0:02:40]} Nf5 {[%emt 0:11:49]} 28. Ra3 {[%emt 0:01:21]} a6 {[%emt 0:01:29]} 29. Bb4 {[%emt 0:00:12]} Rh8 {[%emt 0:05:02]} 30. h4 {[%emt 0:00:21]} Kd7 {[%emt 0:00:38]} 31. Rd1 {[%emt 0:04:33]} Nxg3 {[%emt 0:04:33]} 32. Kxg3 {[%emt 0:01:05]} Rdg8+ {[%emt 0:00:05]} 33. Kf2 {[%emt 0:00:05]} Rxh4 {[%emt 0:00:09]} 34. Ke3 {[%emt 0:01:24]} Rg3+ {[%emt 0:00:15]} 35. Kd2 {[%emt 0:01:15]} Rxf4 {[%emt 0:01:53]} 36. Ba5 {[%emt 0:01:58]} Bc4 {[%emt 0:02:45]} (36... Bc6 $142 37. Kc1 Ke8) 37. Kc1 {[%emt 0:02:26]} Bxd3 {[%emt 0:00:05]} 38. Raxd3+ {[%emt 0:01:31]} Rxd3 {[%emt 0:00:05]} 39. Rxd3+ {[%emt 0:00:01]} ({Resist} 39. cxd3 $6 Rf2 $16) 39... Kc6 {[%emt 0:00:12]} 40. Rd6+ {[%emt 0:00:19]} Kb5 {[%emt 0:00:55]} 41. Bd8 {[%emt 0:00:07]} Kc5 {[%emt 0:01:39]} 42. Bb6+ {[%emt 0:00:34]} Kb5 {[%emt 0:00:59]} 43. c3 {[%emt 0:01:23]} f6 {[%emt 0:02:59]} 44. exf6 {[%emt 0:01:01]} ({Don't play} 44. Rxe6 $6 fxe5 45. Kd2 Kc4 $18) 44... Rxf6 {[%emt 0:00:04]} 45. Bd4 {[%emt 0:00:38]} Rf7 {[%emt 0:00:33]} 46. Rxe6 {[%emt 0:00:20]} Kc4 {[%emt 0:00:07]} 47. Rb6 {[%emt 0:01:11]} Rh7 {[%emt 0:00:27]} 48. Kb2 {[%emt 0:00:23]} Rf7 {[%emt 0:00:47]} 49. Ka3 {[%emt 0:00:41]} Rh7 {[%emt 0:02:15]} 50. Ka4 {[%emt 0:00:15]} Rf7 {[%emt 0:00:57]} 51. Rb4+ {[%emt 0:00:16]} Kd5 {[%emt 0:00:42]} 52. Ka5 {[%emt 0:00:38]} Rh7 {[%emt 0:01:15]} 53. Kb6 {[%emt 0:01:24]} Rf7 {[%emt 0:00:28]} 54. Ra4 {[%emt 0:01:21]} Rh7 {[%emt 0:00:27]} 55. Ra5+ {[%emt 0:00:23]} Kd6 {[%emt 0:00:06]} 56. Be5+ {[%emt 0:00:28]} (56. c4 $142 Rf7 57. Be5+ Ke6 58. Bc7) 56... Ke6 {[%emt 0:00:37]} 57. Bc7 {[%emt 0:00:27]} Rh3 {[%emt 0:00:50]} 58. Rc5 {[%emt 0:00:24]} Rh4 {[%emt 0:00:37]} 59. Kxb7 {[%emt 0:00:25]} Ra4 {[%emt 0:00:13]} 60. Ba5 $18 {[%emt 0:00:37] Kd5} 1-0

[Event "Velammal-AICF Women GM 2019"]
[Site "Chennai"]
[Date "2019.02.03"]
[Round "10"]
[White "Chandreyee, Hajra"]
[Black "Michelle Catherina, P."]
[Result "*"]
[ECO "C77"]
[WhiteElo "1925"]
[BlackElo "2175"]
[Annotator "ChessBase"]
[PlyCount "91"]
[EventDate "2019.01.28"]
[EventType "swiss"]
[EventCountry "IND"]
[SourceTitle "playchess.com"]
[Source "ChessBase"]
[SourceQuality "1"]
[TimeControl "5400+30"]

1. e4 {[%emt 0:00:33]} e5 {[%emt 0:02:48]} 2. Nf3 {[%emt 0:00:06]} Nc6 {[%emt 0:00:04]} 3. Bb5 {[%emt 0:00:05]} a6 {[%emt 0:01:35]} 4. Ba4 {[%emt 0:00:06]} Nf6 {[%emt 0:00:06]} 5. d3 {[%emt 0:00:05]} d6 {[%emt 0:03:04]} 6. O-O {[%emt 0:00:27]} g6 {[%emt 0:04:10]} 7. Bxc6+ {[%emt 0:04:53]} bxc6 {[%emt 0:00:05]} 8. d4 {[%emt 0:01:40]} Bg7 {[%emt 0:13:21]} 9. dxe5 {[%emt 0:01:47]} Nxe4 {[%emt 0:01:34]} 10. Re1 {[%emt 0:14:01]} d5 {[%emt 0:04:06]} 11. Nd4 {[%emt 0:07:35]} Bd7 {[%emt 0:13:02]} 12. f3 {[%emt 0:06:12]} Ng5 {[%emt 0:08:51]} 13. h4 {[%emt 0:07:41]} Ne6 {[%emt 0:03:05]} 14. Nxe6 {[%emt 0:00:13]} Bxe6 {[%emt 0:01:05]} 15. Bg5 {[%emt 0:04:09]} Qb8 {[%emt 0:02:47]} 16. b3 {[%emt 0:02:04]} O-O {[%emt 0:04:24]} 17. Bf6 {[%emt 0:04:59]} Qb6+ {[%emt 0:04:12]} 18. Kh2 {[%emt 0:01:26]} Bxf6 {[%emt 0:02:20]} 19. exf6 {[%emt 0:00:26]} Qf2 {[%emt 0:00:23]} 20. h5 {[%emt 0:01:21]} Qh4+ {[%emt 0:02:35]} 21. Kg1 {[%emt 0:00:07]} Qxf6 {[%emt 0:00:21]} 22. c3 {[%emt 0:01:48]} c5 {[%emt 0:03:20]} 23. hxg6 {[%emt 0:01:28]} hxg6 {[%emt 0:00:25]} 24. Qd2 {[%emt 0:03:08]} Kg7 {[%emt 0:02:35]} 25. Qf2 {[%emt 0:02:50]} Qe7 {[%emt 0:03:52]} 26. Qg3 {[%emt 0:02:12]} Rh8 {[%emt 0:02:10]} 27. Qe5+ {[%emt 0:04:06]} Kg8 {[%emt 0:00:23]} 28. Na3 {[%emt 0:02:31]} Rh5 {[%emt 0:03:04]} 29. Qf4 {[%emt 0:04:58]} Kg7 {[%emt 0:00:46]} 30. g4 {[%emt 0:03:23]} Rh3 {[%emt 0:07:32]} 31. Qe5+ {[%emt 0:00:41]} Qf6 {[%emt 0:00:18]} 32. Qxf6+ {[%emt 0:03:13]} Kxf6 {[%emt 0:00:01]} 33. Kf2 {[%emt 0:02:29]} Rh2+ {[%emt 0:01:45]} 34. Ke3 {[%emt 0:00:19]} Re8 {[%emt 0:02:21]} 35. Kd3 {[%emt 0:00:49]} Reh8 {[%emt 0:00:36]} 36. Re2 {[%emt 0:02:33]} Rxe2 {[%emt 0:00:58]} 37. Kxe2 {[%emt 0:00:06]} Rh2+ {[%emt 0:00:39]} 38. Kd3 {[%emt 0:00:48]} Ke5 {[%emt 0:02:04]} 39. c4 {[%emt 0:03:02]} d4 {[%emt 0:01:53]} 40. Nc2 {[%emt 0:02:29]} Rf2 {[%emt 0:00:11]} 41. Re1+ {[%emt 0:02:02]} Kd6 {[%emt 0:00:48]} 42. b4 {[%emt 0:01:39]} Bxc4+ {[%emt 0:00:35]} 43. Kxc4 {[%emt 0:00:17]} Rxc2+ {[%emt 0:00:02]} 44. Kd3 {[%emt 0:00:52]} Rc3+ {[%emt 0:00:10]} 45. Ke4 {[%emt 0:00:12]} cxb4 {[%emt 0:00:17]} 46. Kxd4 {[%emt 0:00:45]} *

[Event "Velammal-AICF Women GM 2019"]
[Site "Chennai"]
[Date "2019.02.04"]
[Round "11.6"]
[White "Franco Valencia, Angela"]
[Black "Nakhbayeva, Guliskhan"]
[Result "1/2-1/2"]
[ECO "C05"]
[WhiteElo "2107"]
[BlackElo "2336"]
[Annotator "ChessBase"]
[PlyCount "140"]
[EventDate "2019.01.28"]
[EventType "swiss"]
[EventCountry "IND"]
[SourceTitle "playchess.com"]
[Source "ChessBase"]
[SourceQuality "1"]
[TimeControl "5400+30"]

1. e4 {[%emt 0:00:00]} e6 {[%emt 0:00:00]} 2. d4 {[%emt 0:00:00]} d5 {[%emt 0:00:00]} 3. Nd2 {[%emt 0:00:04]} Nf6 {[%emt 0:00:00]} 4. e5 {[%emt 0:00:12]} Nfd7 {[%emt 0:00:00]} 5. Bd3 {[%emt 0:00:07]} c5 {[%emt 0:00:01]} 6. c3 {[%emt 0:00:05]} Nc6 {[%emt 0:00:02]} 7. Ngf3 {[%emt 0:00:52]} Be7 {[%emt 0:00:16]} 8. O-O {[%emt 0:00:18]} g5 {[%emt 0:00:13]} 9. dxc5 {[%emt 0:00:16]} g4 {[%emt 0:00:14]} 10. Nd4 {[%emt 0:00:09]} Ndxe5 11. Bb5 Bd7 {[%emt 0:00:57]} 12. N2b3 {[%emt 0:01:56]} a6 {[%emt 0:08:05]} 13. Bxc6 {[%emt 0:00:19]} bxc6 {[%emt 0:00:13]} 14. f4 {[%emt 0:03:34]} gxf3 {[%emt 0:02:46]} 15. Nxf3 {[%emt 0:00:07]} Ng6 {[%emt 0:00:09]} 16. Bh6 {[%emt 0:03:07]} Qc7 {[%emt 0:09:31]} 17. Qe2 {[%emt 0:03:55]} f6 {[%emt 0:08:19]} 18. Nfd4 {[%emt 0:06:00]} Qe5 {[%emt 0:06:33]} 19. Qd2 {[%emt 0:08:24]} f5 {[%emt 0:02:05]} 20. Rae1 {[%emt 0:06:38]} Qf6 {[%emt 0:00:03]} 21. Nf3 {[%emt 0:14:28]} Rb8 {[%emt 0:26:39]} 22. Kh1 {[%emt 0:06:07]} Kd8 {[%emt 0:06:47]} 23. Nbd4 {[%emt 0:04:00]} Kc8 {[%emt 0:04:18]} 24. Bg5 {[%emt 0:01:15]} Qf7 {[%emt 0:00:46]} 25. Bxe7 {[%emt 0:00:18]} Qxe7 {[%emt 0:00:45]} 26. Nxe6 {[%emt 0:06:51]} Bxe6 {[%emt 0:02:10]} 27. Nd4 {[%emt 0:00:07]} Nf8 {[%emt 0:03:02]} 28. Qh6 {[%emt 0:03:07]} Qxc5 {[%emt 0:04:10]} 29. Nxe6 {[%emt 0:01:05]} Nxe6 {[%emt 0:00:08]} 30. Rxe6 {[%emt 0:00:07]} Kb7 {[%emt 0:00:39]} 31. Rxf5 {[%emt 0:01:13]} Rbf8 {[%emt 0:02:59]} 32. Qg7+ {[%emt 0:02:22]} Kb6 {[%emt 0:01:01]} 33. Rff6 {[%emt 0:02:57]} Rxf6 {[%emt 0:01:52]} 34. Qxf6 {[%emt 0:00:32]} Rc8 {[%emt 0:01:40]} 35. h3 {[%emt 0:01:18]} a5 36. Re7 {[%emt 0:02:28]} Rc7 {[%emt 0:06:05]} 37. Rxc7 {[%emt 0:01:26]} Kxc7 {[%emt 0:00:01]} 38. Qf7+ {[%emt 0:00:14]} Kb6 {[%emt 0:00:06]} 39. Qxh7 {[%emt 0:00:28]} Qf2 {[%emt 0:00:25]} 40. Qb1 {[%emt 0:00:11]} c5 {[%emt 0:00:52]} 41. a4 {[%emt 0:03:56]} d4 {[%emt 0:01:01]} 42. cxd4 {[%emt 0:00:05]} cxd4 43. b4 {[%emt 0:00:12]} axb4 {[%emt 0:01:19]} 44. Qxb4+ {[%emt 0:00:05]} Kc6 {[%emt 0:01:33]} 45. Qb5+ {[%emt 0:02:28]} Kd6 {[%emt 0:00:39]} 46. Qd3 {[%emt 0:02:20]} Qe1+ {[%emt 0:02:09]} 47. Kh2 {[%emt 0:00:05]} Qc3 {[%emt 0:00:24]} 48. Qg6+ {[%emt 0:01:04]} Kc5 {[%emt 0:01:29]} 49. Qf5+ {[%emt 0:00:53]} Kb4 {[%emt 0:00:13]} 50. a5 {[%emt 0:06:13]} d3 {[%emt 0:00:26]} 51. a6 {[%emt 0:00:26]} Qc7+ {[%emt 0:00:14]} 52. Kg1 {[%emt 0:01:04]} d2 {[%emt 0:01:36]} 53. Qb1+ {[%emt 0:03:52]} Kc3 {[%emt 0:00:04]} 54. Qa1+ {[%emt 0:03:57]} Kd3 {[%emt 0:00:16]} 55. Qb1+ {[%emt 0:01:15]} Kc3 {[%emt 0:00:43]} 56. Qa1+ {[%emt 0:01:07]} Kd3 {[%emt 0:00:03]} 57. Qb1+ {[%emt 0:00:14]} Kd4 {[%emt 0:00:44]} 58. Qb4+ {[%emt 0:00:42]} Kd3 {[%emt 0:00:58]} 59. Qb1+ {[%emt 0:01:07]} Kc3 {[%emt 0:00:54]} 60. Qa1+ {[%emt 0:00:40]} Kd3 {[%emt 0:00:21]} 61. Qb1+ {[%emt 0:00:48]} Qc2 {[%emt 0:00:42]} 62. Qf1+ {[%emt 0:00:08]} Ke3 {[%emt 0:00:25]} 63. Qf2+ {[%emt 0:01:35]} Kd3 {[%emt 0:00:29]} 64. Qf1+ {[%emt 0:00:14]} Ke3 {[%emt 0:00:17]} 65. Qf2+ {[%emt 0:00:17]} Ke4 {[%emt 0:00:17]} 66. Qh4+ {[%emt 0:00:55]} Kd3 {[%emt 0:00:18]} 67. Qg3+ {[%emt 0:00:17]} Kd4 {[%emt 0:01:04]} 68. Qf2+ {[%emt 0:00:46]} Kc4 {[%emt 0:00:16]} 69. Qf1+ {[%emt 0:00:14]} Qd3 {[%emt 0:00:46]} 70. Qd1 {[%emt 0:00:15]} Qe3+ {[%emt 0:00:50]} 1/2-1/2